bitfinex-derivatives/quotes_SOLF0:USTF0_20241222
["timestamp","ask_amount","ask_price","bid_price","bid_amount"]
[1734858196260,1.6719,184.46,184.39,2.7136]
[1734858196760,2.7129,184.44,184.39,2.7136]
[1734858198765,2.7131,184.43,184.39,2.7136]
[1734858201469,1.6719,184.46,184.37,2.8]
[1734858201769,1.6719,184.46,184.38,8.89757203]
[1734858202559,1.6719,184.46,184.37,2.8]
[1734858202766,1.6719,184.46,184.39,8.89757203]
[1734858203068,4.3845,184.46,184.41,2.7132]
[1734858203266,1.6719,184.46,184.41,2.8]
[1734858203468,1.6719,184.46,184.42,2.7131]
[1734858205662,4.3845,184.46,184.42,2.7131]
[1734858206769,1.6719,184.46,184.39,8.89757203]
[1734858206958,1.6719,184.46,184.39,2.8]
[1734858207865,4.4719,184.46,184.34,60.36751829]
[1734858208169,8.89757203,184.45,184.34,63.16751829]
[1734858208369,8.89757203,184.45,184.34,5.5142]
[1734858208370,2.7138,184.39,184.34,5.5142]
[1734858208672,2.8,184.42,184.34,5.5142]
[1734858209275,11.69757203,184.42,184.32,60.36751829]
[1734858209868,2.7141,184.37,184.31,109.98755316]
[1734858210267,11.69757203,184.42,184.31,104.47275316]
[1734858210466,8.89757203,184.39,184.27,60.36751829]
[1734858210670,8.89757203,184.36,184.27,60.36751829]
[1734858211069,2.7148,184.31,184.23,60.36751829]
[1734858211969,2.8,184.34,184.23,60.36751829]
[1734858212367,2.8,184.37,184.22,17.05834177]
[1734858213474,2.7144,184.34,184.28,2.7151]
[1734858214172,2.7144,184.34,184.27,2.8]
[1734858214173,2.7144,184.34,184.29,2.7151]
[1734858214677,2.7145,184.33,184.27,5.5153]
[1734858214968,2.8,184.37,184.27,2.8]
[1734858215371,2.7145,184.34,184.28,2.7151]
[1734858215873,2.8,184.37,184.28,2.7151]
[1734858216070,2.7145,184.33,184.28,2.7151]
[1734858216271,2.8,184.37,184.29,2.7151]
[1734858216773,2.8,184.37,184.27,5.5153]
[1734858216968,2.8,184.37,184.27,2.8]
[1734858217170,2.7145,184.34,184.28,2.7152]
[1734858217372,2.8,184.37,184.28,2.7152]
[1734858217674,2.7148,184.32,184.27,2.8]
[1734858217875,2.8,184.37,184.19,2.6704]
[1734858218074,2.8,184.37,184.2,17.05834177]
[1734858218673,2.7147,184.32,184.24,2.7158]
[1734858218875,2.8,184.33,184.23,2.8]
[1734858219077,1.6862,184.31,184.17,14.25834177]
[1734858219274,3.2863,184.3,184.18,2.8]
[1734858219474,2.7156,184.26,184.21,2.7163]
[1734858220076,3.2863,184.3,184.15,56.4]
[1734858220277,3.2863,184.3,184.18,5.5167]
[1734858220874,2.716,184.24,184.18,2.7167]
[1734858221075,2.8,184.27,184.18,2.7167]
[1734858222270,2.7161,184.23,184.18,2.7167]
[1734858222475,2.8,184.27,184.17,2.8]
[1734858222674,2.8,184.27,184.16,2.7169]
[1734858223274,2.7162,184.22,184.16,2.7169]
[1734858223572,2.7162,184.22,184.17,2.7169]
[1734858223976,2.716,184.23,184.15,2.8]
[1734858224172,14.25834177,184.29,184.15,2.8]
[1734858224380,2.8,184.28,184.15,2.8]
[1734858224574,2.7157,184.26,184.15,2.8]
[1734858224777,2.8,184.28,184.2,2.7164]
[1734858224977,14.25834177,184.29,184.2,2.7164]
[1734858225279,2.7156,184.26,184.21,2.7163]
[1734858225874,2.7156,184.26,184.19,2.8]
[1734858225875,2.7154,184.27,184.22,2.7161]
[1734858226582,2.7158,184.25,184.2,2.7163]
[1734858226880,2.8,184.29,184.19,2.8]
[1734858227073,2.7157,184.25,184.21,2.7162]
[1734858227271,2.7157,184.25,184.19,2.8]
[1734858227474,2.8,184.29,184.19,2.8]
[1734858227677,17.05834177,184.29,184.18,2.8]
[1734858228473,17.05834177,184.29,184.12,14.25834177]
[1734858228682,14.25834177,184.26,184.13,2.8]
[1734858228880,2.8,184.25,184.14,2.8]
[1734858229080,2.7166,184.2,184.14,5.5173]
[1734858229781,2.7172,184.15,184.1,2.7179]
[1734858229981,2.8,184.16,184.05,2.8]
[1734858230176,3.2933,184.15,184.05,2.8]
[1734858230372,2.7176,184.12,184.05,2.8]
[1734858230576,3.53845697,184.32,184.07,14.25834177]
[1734858230781,14.25834177,184.26,184.1,14.25834177]
[1734858231083,2.7167,184.18,184.12,2.7176]
[1734858232972,3.2609,184.21,184.11,2.8]
[1734858233173,2.7165,184.2,184.11,2.8]
[1734858233577,2.7166,184.19,184.13,2.7173]
[1734858234280,2.7166,184.19,184.14,2.7173]
[1734858235177,2.7166,184.19,184.11,2.8]
[1734858235481,2.7166,184.19,184.06,2.6814]
[1734858235482,2.7168,184.18,184.12,2.8]
[1734858235979,2.7168,184.18,184.13,2.7174]
[1734858236182,2.7166,184.2,184.13,2.7174]
[1734858236482,3.2609,184.21,184.13,2.7174]
[1734858236875,3.2609,184.21,184.12,5.5176]
[1734858236876,2.7167,184.18,184.12,5.5176]
[1734858237578,2.7167,184.18,184.12,2.8]
[1734858237780,3.2609,184.21,184.12,2.8]
[1734858238085,86.08961741,184.25,184.13,8.92097488]
[1734858238279,2.7163,184.21,184.16,2.7169]
[1734858238484,2.7163,184.21,184.17,2.8]
[1734858238683,86.08961741,184.25,184.17,2.8]
[1734858239387,83.28961741,184.25,184.17,2.8]
[1734858239587,2.7158,184.24,184.19,2.7165]
[1734858242185,17.07294479,184.28,184.17,2.8]
[1734858242376,14.27294479,184.25,184.15,2.8]
[1734858242576,14.27294479,184.22,184.14,2.8]
[1734858243288,2.7169,184.17,184.14,2.8]
[1734858243686,2.7169,184.17,184.13,2.8]
[1734858244086,2.717,184.16,184.11,2.7176]
[1734858244287,14.27294479,184.22,184.1,2.8]
[1734858244288,2.8,184.19,184.1,2.8]
[1734858244586,2.7176,184.12,184.07,115.79589009]
[1734858244779,2.7176,184.12,184.08,2.8]
[1734858244980,14.27294479,184.16,184.06,2.8]
[1734858245181,2.7181,184.09,184.03,0.20362]
[1734858245387,14.27294479,184.13,184.03,0.20362]
[1734858245786,2.7183,184.08,184.03,0.20362]
[1734858246389,14.27294479,184.13,184.03,2.92252]
[1734858246589,2.718,184.1,184.03,2.92252]
[1734858247191,2.7179,184.1,184.03,2.92252]
[1734858247390,14.27294479,184.13,184.03,2.92252]
[1734858248086,2.7179,184.1,184.03,2.7189]
[1734858248286,2.7179,184.1,184.02,2.8]
[1734858248287,7.8612,184.15,184.06,2.7184]
[1734858248491,7.8612,184.15,184.06,5.5184]
[1734858248889,2.7178,184.12,184.06,5.5184]
[1734858249186,7.8612,184.15,184.08,2.7182]
[1734858249393,7.7784,184.15,184.06,2.8]
[1734858249587,5.0612,184.15,184.06,2.8]
[1734858249989,14.27294479,184.19,184.06,2.8]
[1734858250194,2.8,184.21,184.06,17.07294479]
[1734858250392,5.0143,184.22,184.13,2.7173]
[1734858250596,5.0143,184.22,184.14,2.8]
[1734858251095,5.0143,184.22,184.11,2.8]
[1734858251490,5.0143,184.22,184.07,2.1058]
[1734858251685,5.0143,184.22,184.08,2.8]
[1734858251686,2.7173,184.15,184.08,2.8]
[1734858252087,2.7173,184.15,184.1,2.7179]
[1734858252602,2.717,184.16,184.11,2.7177]
[1734858252896,2.8,184.19,184.11,2.7177]
[1734858253099,2.8,184.19,184.12,2.8]
[1734858253400,2.7169,184.17,184.12,2.8]
[1734858254002,2.8,184.19,184.12,2.8]
[1734858254191,5.0143,184.22,184.12,2.8]
[1734858255603,14.27294479,184.2,184.12,2.8]
[1734858256101,2.7172,184.15,184.12,2.8]
[1734858256303,2.8,184.19,184.12,2.8]
[1734858257405,2.7169,184.17,184.12,2.8]
[1734858257604,2.8,184.19,184.12,2.8]
[1734858258199,2.7172,184.15,184.12,2.8]
[1734858259304,5.0143,184.22,184.12,2.8]
[1734858260506,2.7167,184.18,184.14,2.7173]
[1734858261600,5.0143,184.22,184.12,2.8]
[1734858261800,2.7171,184.16,184.12,5.5175]
[1734858262505,2.7171,184.16,184.12,2.8]
[1734858264407,2.7171,184.16,184.12,5.5176]
[1734858264901,2.7171,184.16,184.12,2.7176]
[1734858265106,2.7174,184.14,184.1,2.7178]
[1734858266006,2.7174,184.14,184.1,5.5178]
[1734858266409,2.8,184.19,184.1,2.8]
[1734858267602,2.7169,184.17,184.12,2.7175]
[1734858269008,7.8143,184.22,184.14,2.7172]
[1734858269204,7.8143,184.22,184.14,2.8]
[1734858269910,2.7167,184.19,184.14,2.7173]
[1734858271213,2.7167,184.18,184.14,2.7173]
[1734858271406,7.8143,184.22,184.13,2.8]
[1734858271609,14.27294479,184.21,184.13,2.8]
[1734858271812,2.7166,184.19,184.13,2.8]
[1734858272014,14.27294479,184.21,184.13,2.8]
[1734858272410,2.717,184.17,184.13,2.8]
[1734858272609,14.27294479,184.21,184.13,2.8]
[1734858274512,2.7172,184.15,184.1,2.8]
[1734858275513,2.7172,184.15,184.11,2.7177]
[1734858275714,2.7174,184.14,184.1,2.8]
[1734858276009,14.27294479,184.21,184.1,2.8]
[1734858276215,2.8,184.18,184.1,2.8]
[1734858276416,2.7172,184.15,184.1,2.8]
[1734858276710,14.27294479,184.11,184.04,29.57591829]
[1734858276915,2.8,184.1,184.04,29.57591829]
[1734858277213,14.27294479,184.14,184.0,150.39542472]
[1734858277408,2.8,184.13,184.0,150.39542472]
[1734858278316,2.7179,184.1,184.0,150.39542472]
[1734858278510,2.12991684,184.09,184.0,150.39542472]
[1734858278716,2.7179,184.1,183.99,3.6096]
[1734858278717,2.12991684,184.08,183.99,3.6096]
[1734858278914,2.12991684,184.07,184.03,2.7188]
[1734858279111,2.12991684,184.06,184.03,2.7188]
[1734858279313,2.7179,184.1,184.03,2.7188]
[1734858279610,2.12835031,184.09,184.01,2.7191]
[1734858279816,2.12835031,184.08,183.99,2.8]
[1734858280113,2.12835031,184.07,183.99,2.8]
[1734858280309,2.12835031,184.06,184.01,2.7192]
[1734858280509,2.7184,184.07,183.99,2.8]
[1734858280912,2.7184,184.07,184.01,2.7192]
[1734858284019,2.8,184.1,184.0,2.8]
[1734858284223,2.7182,184.08,184.03,2.7188]
[1734858288525,8.93595701,184.09,184.03,2.7188]
[1734858288717,2.7185,184.07,184.02,2.7191]
[1734858289216,2.7187,184.05,184.01,1.597]
[1734858289416,8.93595701,184.06,184.01,1.597]
[1734858289612,2.12768465,184.05,184.01,1.597]
[1734858289815,2.7187,184.05,184.01,1.597]
[1734858291927,2.12631809,184.04,183.96,4.3163]
[1734858292121,11.0622751,184.03,183.96,1.5965]
[1734858292424,2.12631809,184.02,183.96,1.5965]
[1734858292624,2.12631809,184.01,183.96,1.5965]
[1734858292821,11.65505701,184.03,183.96,1.5965]
[1734858293127,2.12462436,184.02,183.96,1.5965]
[1734858293423,11.65505701,184.03,183.98,2.7197]
[1734858293627,2.7192,184.01,183.96,1.5965]
[1734858293824,2.12318954,184.0,183.96,1.5965]
[1734858294017,8.93595701,184.03,183.96,1.5965]
[1734858294330,2.12304872,184.02,183.96,1.5965]
[1734858294624,2.12304872,184.01,183.96,1.5965]
[1734858294826,2.12304872,184.0,183.96,1.5965]
[1734858295027,2.7195,183.99,183.95,0.5722]
[1734858296336,2.7197,183.98,183.92,2.8]
[1734858297534,2.7197,183.98,183.93,2.7203]
[1734858298034,2.7199,183.97,183.92,2.7205]
[1734858298229,8.93595701,184.0,183.91,3.425]
[1734858298430,2.8,184.01,183.91,3.425]
[1734858298733,2.7197,183.98,183.93,2.7203]
[1734858298932,11.73595701,184.01,183.91,3.425]
[1734858299133,2.7197,183.98,183.92,2.7205]
[1734858299333,11.73595701,184.01,183.92,2.7205]
[1734858299636,2.7198,183.97,183.92,2.7205]
[1734858301032,2.7198,183.97,183.9,2.8]
[1734858301231,11.73595701,184.01,183.9,2.8]
[1734858302136,11.73595701,184.01,183.91,2.7206]
[1734858302634,4.12038405,184.07,183.91,8.93595701]
[1734858302833,2.11477747,184.06,183.94,8.93595701]
[1734858303037,4.12038405,184.07,183.95,2.8]
[1734858303238,2.7188,184.05,184.0,2.7193]
[1734858303941,2.7188,184.05,184.01,2.7192]
[1734858304137,6.83888405,184.07,183.99,2.8]
[1734858305536,4.12038405,184.07,184.02,2.7189]
[1734858306032,2.7187,184.05,184.0,1.6007]
[1734858306438,4.12038405,184.07,184.0,1.6007]
[1734858306935,6.83878405,184.07,184.0,1.6007]
[1734858307142,8.93595701,184.11,184.0,10.53665701]
[1734858307338,8.93595701,184.14,184.0,10.53665701]
[1734858307539,2.7175,184.13,184.07,2.7183]
[1734858307739,2.7175,184.13,184.03,8.93595701]
[1734858307740,2.7175,184.13,184.06,2.8]
[1734858308242,2.7175,184.13,184.07,2.7183]
[1734858309442,13.45255701,184.17,184.06,2.8]
[1734858309641,2.7173,184.14,184.08,2.7181]
[1734858309842,8.93595701,184.17,184.06,11.73595701]
[1734858310041,18.72179154,184.22,184.07,4.9983]
[1734858310239,2.11995722,184.21,184.07,4.9983]
[1734858310543,2.11995722,184.2,184.07,4.9983]
[1734858310738,2.11995722,184.19,184.07,4.9983]
[1734858310936,2.717,184.16,184.11,2.7176]
[1734858311141,2.1213968,184.15,184.07,4.9983]
[1734858311335,14.28159154,184.19,184.08,2.8]
[1734858311538,2.122146,184.18,184.08,2.8]
[1734858311735,2.122146,184.17,184.08,2.8]
[1734858311937,2.122146,184.16,184.11,2.7177]
[1734858312246,2.122146,184.16,184.12,2.8]
[1734858312442,2.12226179,184.15,184.12,2.8]
[1734858312748,2.717,184.17,184.12,2.8]
[1734858312944,2.1223746,184.16,184.12,2.8]
[1734858313146,2.1223746,184.15,184.12,2.8]
[1734858313448,2.717,184.16,184.12,2.8]
[1734858313647,2.12259211,184.15,184.12,2.8]
[1734858313843,2.717,184.16,184.12,2.8]
[1734858314045,2.12262071,184.15,184.12,2.8]
[1734858314244,2.717,184.16,184.12,2.8]
[1734858314445,2.12344449,184.15,184.12,2.8]
[1734858314646,2.717,184.16,184.11,2.7177]
[1734858314946,2.12413698,184.15,184.11,2.8]
[1734858315150,14.28159154,184.19,184.11,2.8]
[1734858315450,2.12456787,184.18,184.11,2.8]
[1734858315649,2.717,184.16,184.11,2.8]
[1734858315844,2.12456787,184.15,184.11,2.8]
[1734858316650,2.12456787,184.15,184.11,5.5177]
[1734858317850,2.12456787,184.15,184.11,2.8]
[1734858319249,2.12456787,184.15,184.04,14.28159154]
[1734858319444,2.12456787,184.14,184.05,5.5185]
[1734858319655,2.12456787,184.13,184.06,2.8]
[1734858319851,2.12456787,184.12,184.06,2.8]
[1734858320053,6.1225,184.18,184.06,2.8]
[1734858320249,14.28159154,184.16,184.02,1.6892]
[1734858320554,3.83223779,184.15,184.03,2.8]
[1734858320751,2.7183,184.08,184.03,2.8]
[1734858320946,2.8,184.14,184.02,4.4081]
[1734858321153,2.7185,184.06,184.03,2.8]
[1734858322355,2.7188,184.04,184.03,2.8]
[1734858322849,2.7188,184.04,183.99,6.0679]
[1734858323155,2.7188,184.04,184.02,2.8]
[1734858323750,2.7188,184.04,183.99,6.0679]
[1734858323948,2.719,184.03,183.99,1.6471]
[1734858324356,2.719,184.03,184.0,2.8]
[1734858324549,1.5915,184.09,184.0,2.8]
[1734858324750,2.7191,184.02,184.0,2.8]
[1734858325051,3.3858,184.08,184.0,2.8]
[1734858325355,2.7192,184.01,183.98,2.8]
[1734858325556,2.7192,184.01,183.97,2.8]
[1734858325753,2.7192,184.01,183.95,4.2924]
[1734858325951,2.7192,184.01,183.96,2.8]
[1734858329361,2.8,184.06,183.93,16.00159154]
[1734858329659,2.11934156,184.05,183.94,2.8]
[1734858329858,2.11934156,184.04,183.94,2.8]
[1734858330048,2.7198,183.98,183.94,2.8]
[1734858330249,2.8,184.06,183.81,89.95494527]
[1734858330559,2.7199,183.97,183.91,2.7207]
[1734858330758,1.7289,184.02,183.92,2.8]
[1734858330958,2.11825891,184.01,183.93,2.8]
[1734858331160,1.7289,184.02,183.93,2.8]
[1734858331161,2.11825891,184.0,183.93,2.8]
[1734858331359,2.11825891,183.99,183.93,2.8]
[1734858331653,2.7199,183.97,183.93,2.8]
[1734858332757,1.7289,184.02,183.9,8.94298932]
[1734858332961,2.7201,183.96,183.91,2.8]
[1734858337264,2.7201,183.96,183.9,11.66378932]
[1734858337567,2.7201,183.96,183.92,2.8]
[1734858337767,2.7201,183.96,183.9,11.66378932]
[1734858337965,2.7201,183.96,183.91,2.8]
[1734858339565,2.7201,183.96,183.91,5.5207]
[1734858340274,3.1843,184.01,183.91,5.5207]
[1734858340465,2.7201,183.95,183.91,5.5207]
[1734858342068,2.7201,183.95,183.91,2.8]
[1734858342765,2.7199,183.97,183.91,2.8]
[1734858342972,3.1843,184.01,183.91,2.8]
[1734858343271,2.7208,183.91,183.86,8.94298932]
[1734858343573,8.94298932,183.94,183.86,2.8]
[1734858343774,2.1153972,183.93,183.86,2.8]
[1734858344072,2.11530067,183.92,183.86,2.8]
[1734858344273,8.94298932,183.94,183.86,2.8]
[1734858344467,2.11505826,183.93,183.86,2.8]
[1734858344772,8.94298932,183.94,183.86,2.8]
[1734858344968,2.11390121,183.93,183.86,2.8]
[1734858345170,8.94298932,183.94,183.86,2.8]
[1734858345371,2.11360616,183.93,183.84,4.8557]
[1734858345570,2.11360616,183.93,183.85,2.8]
[1734858346170,8.94298932,183.94,183.84,7.5774]
[1734858346374,2.11290081,183.93,183.85,2.8]
[1734858346674,2.7209,183.9,183.85,2.8]
[1734858346873,8.94298932,183.97,183.85,2.8]
[1734858347073,2.11212716,183.96,183.85,2.8]
[1734858347269,2.7207,183.92,183.87,2.7213]
[1734858347671,11.74298932,183.97,183.85,2.8]
[1734858347866,2.7208,183.91,183.86,2.8]
[1734858348068,11.74298932,183.97,183.86,2.8]
[1734858348373,2.7209,183.9,183.86,2.8]
[1734858349165,2.7212,183.88,183.86,2.8]
[1734858350073,2.8,183.93,183.84,4.4512]
[1734858350375,2.7213,183.87,183.84,1.6512]
[1734858350575,2.7213,183.87,183.84,4.4512]
[1734858350966,2.7212,183.88,183.84,4.4512]
[1734858351673,2.7212,183.88,183.84,1.6512]
[1734858351875,2.7212,183.88,183.84,4.4512]
[1734858352876,2.7212,183.88,183.83,2.7219]
[1734858353374,2.8,183.93,183.81,2.8]
[1734858353579,2.7215,183.86,183.82,2.722]
[1734858353779,2.7215,183.86,183.82,5.522]
[1734858354277,2.7215,183.86,183.82,2.8]
[1734858355179,8.94298932,183.91,183.81,2.7222]
[1734858355376,2.7216,183.85,183.81,2.8]
[1734858355878,2.7216,183.85,183.8,5.5223]
[1734858356777,2.7215,183.86,183.81,2.7222]
[1734858357587,8.94298932,183.91,183.81,2.8]
[1734858357783,3.4288,183.93,183.81,2.8]
[1734858358084,2.10690867,183.92,183.81,2.8]
[1734858358284,2.721,183.9,183.81,2.8]
[1734858358786,8.94298932,183.94,183.83,8.94298932]
[1734858358987,8.94298932,183.94,183.84,5.1181]
[1734858359186,8.94298932,183.94,183.85,2.8]
[1734858359681,2.7207,183.91,183.86,2.7214]
[1734858359883,8.94298932,183.94,183.85,2.8]
[1734858360086,2.10935677,183.93,183.85,2.8]
[1734858360277,8.94298932,183.94,183.85,2.8]
[1734858360278,2.10938325,183.92,183.85,2.8]
[1734858360482,8.94298932,183.94,183.85,2.8]
[1734858360784,2.7207,183.91,183.87,2.7213]
[1734858362585,8.94298932,183.94,183.85,2.8]
[1734858362586,2.7206,183.92,183.85,2.8]
[1734858363383,2.7201,183.95,183.86,8.94298932]
[1734858363690,2.11639797,183.94,183.86,8.94298932]
[1734858363890,8.94298932,183.97,183.86,8.94298932]
[1734858364091,2.11751314,183.96,183.86,8.94298932]
[1734858364288,2.11751314,183.95,183.86,8.94298932]
[1734858364487,2.11751314,183.94,183.86,8.94298932]
[1734858364790,2.7198,183.97,183.89,2.7209]
[1734858364989,2.12002817,183.96,183.9,2.8]
[1734858365187,2.12002817,183.95,183.9,2.8]
[1734858365381,8.94298932,184.0,183.91,1.6009]
[1734858365585,2.12137445,183.99,183.91,1.6009]
[1734858365786,2.12137445,183.98,183.91,1.6009]
[1734858366091,2.12137445,183.97,183.91,1.6009]
[1734858366389,2.12137445,183.96,183.93,2.7204]
[1734858366589,2.12137445,183.95,183.94,2.8]
[1734858366789,2.12137445,183.99,183.94,2.8]
[1734858366990,2.12137445,183.98,183.94,2.8]
[1734858367191,2.12137445,183.97,183.94,2.8]
[1734858367389,2.12137445,183.96,183.94,2.8]
[1734858367692,2.12137445,183.95,183.91,4.4009]
[1734858367883,2.12137445,183.94,183.91,4.4009]
[1734858368086,8.94298932,184.0,183.91,7.1216]
[1734858368292,2.12584874,183.99,183.91,7.1216]
[1734858368492,2.12584874,183.98,183.92,2.8]
[1734858368688,8.94298932,184.0,183.92,2.8]
[1734858368689,2.12584874,183.97,183.92,2.8]
[1734858368895,2.12584874,183.96,183.9,2.8]
[1734858369188,2.12584874,183.95,183.9,2.8]
[1734858369384,2.12584874,183.94,183.9,2.8]
[1734858369590,2.12584874,183.93,183.9,2.8]
[1734858369793,2.12584874,183.92,183.9,2.8]
[1734858370094,2.7199,183.97,183.91,2.7207]
[1734858370294,2.12641817,183.96,183.91,2.7207]
[1734858370492,2.12641817,183.95,183.91,2.7207]
[1734858370693,2.12641817,183.94,183.91,2.7207]
[1734858370889,2.72,183.96,183.91,2.7207]
[1734858371090,2.12677114,183.95,183.9,2.8]
[1734858371289,2.8,184.02,183.9,2.8]
[1734858371595,2.1268698,184.01,183.92,8.94298932]
[1734858371892,4.8462698,184.0,183.95,2.7201]
[1734858372091,2.1268698,183.99,183.95,5.5201]
[1734858372293,2.1268698,183.98,183.95,5.5201]
[1734858372592,2.1268698,183.97,183.96,2.72]
[1734858373189,2.1268698,183.97,183.95,2.8]
[1734858373485,10.53238932,184.04,183.95,2.8]
[1734858373688,2.12708745,184.03,183.95,2.8]
[1734858373889,2.12708745,184.02,183.95,2.8]
[1734858374088,2.12708745,184.01,183.95,2.8]
[1734858374396,2.12708745,184.0,183.95,2.8]
[1734858374596,2.12708745,183.99,183.95,2.8]
[1734858374798,2.7191,184.02,183.95,2.8]
[1734858375091,2.12908526,184.01,183.95,11.74298932]
[1734858375292,2.12908526,184.0,183.96,2.7199]
[1734858375696,4.07385912,184.05,183.96,2.7199]
[1734858375997,2.7191,184.02,183.96,2.7199]
[1734858376193,2.12829631,184.01,183.97,2.7197]
[1734858376392,2.12829631,184.0,183.97,2.7197]
[1734858376589,2.7191,184.02,183.97,2.7197]
[1734858376790,2.12774594,184.01,183.97,2.7197]
[1734858376990,2.12768455,184.0,183.97,2.7197]
[1734858377196,2.7191,184.02,183.97,2.7197]
[1734858377396,2.12760912,184.01,183.97,2.7197]
[1734858377591,2.12760912,184.0,183.97,2.7197]
[1734858377799,2.7191,184.02,183.97,2.7197]
[1734858377995,2.12715168,184.01,183.97,2.7197]
[1734858378193,2.12715168,184.0,183.97,2.7197]
[1734858378393,2.7191,184.02,183.97,2.7197]
[1734858378593,2.12655081,184.01,183.97,2.7197]
[1734858378790,2.12655081,184.0,183.97,2.7197]
[1734858378993,2.7191,184.02,183.97,2.7197]
[1734858379201,2.12642443,184.01,183.97,2.7197]
[1734858379400,4.07385912,184.05,183.99,2.7195]
[1734858379401,2.7189,184.04,183.99,2.7195]
[1734858379597,2.12644447,184.03,183.99,5.5195]
[1734858379795,2.7189,184.04,183.99,5.5195]
[1734858380102,2.12593576,184.03,183.99,5.5195]
[1734858380396,1.6666,184.08,184.0,2.7194]
[1734858380599,2.12640193,184.07,184.0,2.7194]
[1734858380901,2.12640193,184.06,184.0,8.94298932]
[1734858381202,2.12640193,184.05,184.0,12.29048932]
[1734858381404,2.12640193,184.04,184.01,2.7192]
[1734858381701,2.7184,184.07,184.01,2.7192]
[1734858381900,2.7188,184.04,184.0,1.7167]
[1734858382094,8.94298932,184.1,184.0,1.7167]
[1734858382297,2.8,184.12,184.0,1.7167]
[1734858382298,2.12407164,184.09,184.0,1.7167]
[1734858382493,2.7186,184.06,184.0,4.4359]
[1734858382800,2.8,184.12,184.0,4.4359]
[1734858383102,2.12320037,184.11,184.0,4.4359]
[1734858383401,2.7187,184.05,184.0,4.4359]
[1734858384201,2.7187,184.05,184.01,2.7192]
[1734858384894,2.7184,184.07,184.02,2.7189]
[1734858385098,2.12112402,184.06,184.02,2.7189]
[1734858385299,2.7184,184.07,184.02,2.7189]
[1734858385504,2.12090932,184.06,184.02,2.7189]
[1734858385799,10.59078932,184.13,184.0,10.65968932]
[1734858386005,2.12019622,184.12,184.03,2.8]
[1734858386203,2.12019622,184.11,184.03,11.74298932]
[1734858386395,2.12019622,184.1,184.03,11.74298932]
[1734858386598,2.12019622,184.09,184.03,11.74298932]
[1734858386807,2.12019622,184.08,184.03,11.74298932]
[1734858387006,2.7178,184.11,184.03,11.74298932]
[1734858387305,1.6478,184.13,184.03,11.74298932]
[1734858387306,2.7182,184.08,184.03,11.74298932]
[1734858388007,10.59078932,184.13,184.03,2.8]
[1734858388302,2.11770056,184.12,184.03,2.8]
[1734858388508,2.7186,184.06,184.03,2.8]
[1734858389807,2.7187,184.05,184.03,2.8]
[1734858390009,10.59078932,184.13,184.03,2.8]
[1734858390206,2.11621258,184.12,184.0,10.65968932]
[1734858390409,2.11621258,184.11,184.01,2.8]
[1734858390719,2.7188,184.05,184.01,2.8]
[1734858392607,2.8,184.1,184.01,2.8]
[1734858392910,2.1178983,184.09,184.01,2.8]
[1734858393209,2.719,184.03,184.01,2.8]
[1734858394110,2.7188,184.04,184.01,2.8]
[1734858395110,2.7191,184.02,184.0,8.94298932]
[1734858396106,2.7193,184.01,183.97,11.66268932]
[1734858396307,2.7193,184.01,183.98,2.8]
[1734858398014,2.7193,184.01,183.97,11.74298932]
[1734858399719,2.7193,184.01,183.97,8.94298932]
[1734858399907,2.7193,184.01,183.97,11.74298932]
[1734858400115,2.8,184.06,183.97,8.94298932]
[1734858400418,7.18842172,184.05,183.96,2.8]